[Event "VII Famalicao Open 2019"]
[Site "Famalicao"]
[Date "2019.07.30"]
[Round "4.13"]
[White "Tadevosyan, Aspet"]
[Black "Da Silva, Tiago Henrique Amaro"]
[Result "1-0"]
[ECO "D35"]
[WhiteElo "2144"]
[BlackElo "2080"]
[Annotator "ChessBase"]
[PlyCount "59"]
[EventDate "2019.07.28"]
[EventType "swiss"]
[EventCountry "POR"]
[SourceTitle "playchess.com"]
[Source "ChessBase"]
[SourceQuality "1"]
[TimeControl "5400+30"]

1. d4 {[%emt 0:02:20]} d5 {[%emt 0:00:54]} 2. c4 {[%emt 0:00:09]} e6 {[%emt 0:00:03]} 3. Nc3 {[%emt 0:00:04]} Nf6 {[%emt 0:00:04]} 4. cxd5 {[%emt 0:00:06]} exd5 {[%emt 0:01:48]} 5. Bg5 {[%emt 0:01:05]} Be7 {[%emt 0:03:34]} 6. e3 {[%emt 0:00:20]} c6 {[%emt 0:01:13]} 7. Bd3 {[%emt 0:00:26]} O-O {[%emt 0:00:52]} 8. Nge2 {[%emt 0:01:12]} Nbd7 {[%emt 0:03:32]} 9. Qc2 {[%emt 0:00:30]} Re8 {[%emt 0:02:40]} 10. O-O {[%emt 0:00:37]} Nf8 {[%emt 0:05:43]} 11. f3 {[%emt 0:02:06]} g6 {[%emt 0:10:56]} 12. Rae1 {[%emt 0:05:43]} Ne6 {[%emt 0:05:43]} 13. Bh4 {[%emt 0:00:26]} a6 {[%emt 0:12:11]} 14. Bf2 {[%emt 0:09:56]} c5 {[%emt 0:05:04]} 15. dxc5 {[%emt 0:01:14]} Nxc5 {[%emt 0:05:29]} 16. Nd4 {[%emt 0:00:34]} b5 {[%emt 0:05:08]} 17. Nc6 {[%emt 0:07:04]} Qc7 {[%emt 0:00:37]} 18. Nxe7+ {[%emt 0:00:19]} Qxe7 {[%emt 0:01:05]} 19. Ne2 {[%emt 0:15:56]} Nxd3 {[%emt 0:04:19]} 20. Qxd3 {[%emt 0:00:35]} Bf5 {[%emt 0:03:56]} 21. Qd2 {[%emt 0:02:00]} Rac8 {[%emt 0:04:54]} 22. Nd4 {[%emt 0:00:27]} Bd7 {[%emt 0:01:04]} 23. Qa5 {[%emt 0:01:27]} Kg7 {[%emt 0:03:25]} 24. Rc1 {[%emt 0:01:13]} Rxc1 {[%emt 0:06:18]} 25. Rxc1 {[%emt 0:00:15]} Rc8 {[%emt 0:00:03]} 26. Re1 {[%emt 0:04:17]} Qd8 {[%emt 0:03:10]} 27. Qxa6 {[%emt 0:02:22]} Ra8 {[%emt 0:01:10]} 28. Qd6 {[%emt 0:00:11]} Rxa2 {[%emt 0:02:50]} 29. Bh4 {[%emt 0:00:36]} Ne8 {[%emt 0:02:37]} 30. Qe5+ {[%emt 0:00:29]} 1-0

[Event "VII Famalicao Open 2019"]
[Site "Famalicao"]
[Date "2019.07.30"]
[Round "4.14"]
[White "Andrade, Ricardo Sarmento"]
[Black "Rodrigues, Afonso"]
[Result "0-1"]
[ECO "D10"]
[WhiteElo "1744"]
[BlackElo "2134"]
[Annotator "ChessBase"]
[PlyCount "84"]
[EventDate "2019.07.28"]
[EventType "swiss"]
[EventCountry "POR"]
[SourceTitle "playchess.com"]
[Source "ChessBase"]
[SourceQuality "1"]
[TimeControl "5400+30"]

1. d4 {[%emt 0:06:31]} d5 {[%emt 0:08:41]} 2. c4 {[%emt 0:00:08]} c6 {[%emt 0:00:07]} 3. cxd5 {[%emt 0:00:05]} cxd5 {[%emt 0:00:06]} 4. Nc3 {[%emt 0:00:05]} Nf6 {[%emt 0:00:24]} 5. Bf4 {[%emt 0:00:07]} Nc6 {[%emt 0:02:02]} 6. e3 {[%emt 0:00:07]} a6 {[%emt 0:00:59]} 7. Be2 {[%emt 0:00:16]} Bf5 {[%emt 0:05:08]} 8. Nf3 {[%emt 0:00:53]} e6 {[%emt 0:01:25]} 9. Qb3 {[%emt 0:01:34]} Bb4 {[%emt 0:03:37]} 10. a3 {[%emt 0:02:50]} Bxc3+ {[%emt 0:17:36]} 11. bxc3 {[%emt 0:01:05]} Qe7 {[%emt 0:02:30]} 12. c4 {[%emt 0:03:21]} dxc4 {[%emt 0:03:22]} 13. Qxc4 {[%emt 0:01:11]} O-O {[%emt 0:01:56]} 14. O-O {[%emt 0:00:08]} Rfc8 {[%emt 0:03:44]} 15. Rfc1 {[%emt 0:02:05]} Nd5 {[%emt 0:09:26]} 16. Bg3 {[%emt 0:01:49]} b5 {[%emt 0:09:32]} 17. Qa2 {[%emt 0:02:37]} Na5 {[%emt 0:03:11]} 18. Qb2 {[%emt 0:02:17]} Nb6 19. Qb4 {[%emt 0:08:21]} Qxb4 {[%emt 0:04:11]} 20. axb4 {[%emt 0:00:08]} Nb3 {[%emt 0:01:22]} 21. Rxc8+ {[%emt 0:00:26]} Rxc8 {[%emt 0:00:02]} 22. Re1 {[%emt 0:00:35]} Nc1 {[%emt 0:04:14]} 23. Bd6 {[%emt 0:08:06]} Rc2 {[%emt 0:00:14]} 24. Bf1 {[%emt 0:02:56]} Bd3 {[%emt 0:02:36]} 25. Bc5 {[%emt 0:05:37]} Nd5 {[%emt 0:00:38]} 26. h3 {[%emt 0:02:02]} Bxf1 {[%emt 0:06:06]} 27. Rxf1 {[%emt 0:01:35]} Ne2+ {[%emt 0:01:33]} 28. Kh2 Rc1 {[%emt 0:00:02]} 29. Rxc1 {[%emt 0:01:29]} Nxc1 {[%emt 0:01:24]} 30. Ne5 {[%emt 0:01:00]} f6 {[%emt 0:00:30]} 31. Nc6 {[%emt 0:00:30]} Nd3 {[%emt 0:00:19]} 32. e4 {[%emt 0:06:32]} Nc3 {[%emt 0:00:37]} 33. f3 {[%emt 0:01:00]} f5 {[%emt 0:00:30]} 34. exf5 {[%emt 0:00:30]} exf5 {[%emt 0:00:01]} 35. Ne7+ {[%emt 0:06:00]} Kf7 {[%emt 0:00:02]} 36. Nxf5 {[%emt 0:00:07]} Nd5 {[%emt 0:00:26]} 37. Nd6+ {[%emt 0:02:48]} Ke6 {[%emt 0:00:22]} 38. Ne8 {[%emt 0:00:52]} g6 {[%emt 0:00:10]} 39. g3 {[%emt 0:02:18]} N5xb4 {[%emt 0:00:47]} 40. Bb6 {[%emt 0:01:50]} Nd5 {[%emt 0:00:26]} 41. Nc7+ {[%emt 0:08:59]} Nxc7 {[%emt 0:00:08]} 42. Bxc7 {[%emt 0:00:01]} b4 {[%emt 0:00:11]} 0-1

[Event "VII Famalicao Open 2019"]
[Site "Famalicao"]
[Date "2019.07.31"]
[Round "5.4"]
[White "Vassallo Barroche, Mauricio"]
[Black "Galego, Luis"]
[Result "1/2-1/2"]
[ECO "E10"]
[WhiteElo "2380"]
[BlackElo "2513"]
[Annotator "ChessBase"]
[PlyCount "30"]
[EventDate "2019.07.28"]
[EventType "swiss"]
[EventCountry "POR"]
[SourceTitle "playchess.com"]
[Source "ChessBase"]
[SourceQuality "1"]
[TimeControl "5400+30"]

1. d4 {[%emt 0:00:00]} Nf6 {[%emt 0:00:00]} 2. c4 {[%emt 0:00:00]} e6 {[%emt 0:00:00]} 3. Nf3 {[%emt 0:00:00]} d5 {[%emt 0:00:08]} 4. g3 {[%emt 0:00:00]} Bb4+ {[%emt 0:00:16]} 5. Bd2 {[%emt 0:00:00]} Be7 {[%emt 0:00:16]} 6. Bg2 {[%emt 0:00:00]} c6 {[%emt 0:00:23]} 7. Qc2 {[%emt 0:00:04]} O-O {[%emt 0:00:16]} 8. O-O {[%emt 0:00:06]} b6 {[%emt 0:00:31]} 9. Bf4 {[%emt 0:00:06]} Bb7 {[%emt 0:00:18]} 10. Rd1 {[%emt 0:00:08]} Nh5 {[%emt 0:00:19]} 11. Bc1 {[%emt 0:00:08]} Nf6 {[%emt 0:00:05]} 12. Bf4 {[%emt 0:00:07]} Nh5 {[%emt 0:00:05]} 13. Bc1 {[%emt 0:00:04]} Nf6 {[%emt 0:00:05]} 14. Bf4 {[%emt 0:00:03]} Nh5 {[%emt 0:00:05]} 15. Bc1 Nf6 1/2-1/2

[Event "VII Famalicao Open 2019"]
[Site "Famalicao"]
[Date "2019.07.31"]
[Round "5.7"]
[White "Fidalgo, Andre Neves"]
[Black "Fernandes, Ricardo Paulos"]
[Result "1-0"]
[ECO "D70"]
[WhiteElo "2262"]
[BlackElo "2007"]
[Annotator "NA"]
[PlyCount "55"]
[EventDate "2019.07.28"]
[EventType "swiss"]
[EventCountry "POR"]
[SourceTitle "playchess.com"]
[Source "ChessBase"]
[SourceQuality "1"]
[TimeControl "5400+30"]

1. d4 {[%emt 0:00:00]} Nf6 {[%emt 0:00:00]} 2. c4 {[%emt 0:00:00]} g6 {[%emt 0:00:00]} 3. Nf3 {[%emt 0:00:05]} Bg7 {[%emt 0:00:00]} 4. g3 {[%emt 0:00:09]} O-O {[%emt 0:00:00]} 5. Bg2 {[%emt 0:00:08]} d6 {[%emt 0:00:00]} 6. O-O {[%emt 0:00:10]} c6 {[%emt 0:02:02]} 7. Nc3 {[%emt 0:00:09]} Nbd7 8. Qc2 {[%emt 0:02:11]} e5 {[%emt 0:01:14]} 9. Rd1 {[%emt 0:00:08]} Qc7 {[%emt 0:00:28]} 10. e4 {[%emt 0:01:44]} h6 {[%emt 0:00:53]} 11. b3 {[%emt 0:03:13]} exd4 {[%emt 0:17:07]} 12. Nxd4 {[%emt 0:01:54]} Re8 {[%emt 0:00:05]} 13. h3 {[%emt 0:03:01]} a5 {[%emt 0:00:50]} 14. Bf4 {[%emt 0:06:16]} Nh5 {[%emt 0:08:44]} 15. Be3 {[%emt 0:00:14]} Nc5 {[%emt 0:00:17]} 16. g4 {[%emt 0:08:39]} Nf6 {[%emt 0:00:38]} 17. Bf4 {[%emt 0:00:50]} Bd7 {[%emt 0:10:13]} 18. Rab1 {[%emt 0:06:14]} Rad8 {[%emt 0:00:52]} 19. a3 {[%emt 0:00:40]} Bc8 {[%emt 0:00:24]} 20. b4 {[%emt 0:00:27]} axb4 {[%emt 0:02:47]} 21. axb4 {[%emt 0:00:10]} Ne6 {[%emt 0:00:03]} 22. Nxe6 {[%emt 0:00:43]} Rxe6 {[%emt 0:04:50]} 23. c5 {[%emt 0:00:23]} Ne8 {[%emt 0:01:43]} 24. cxd6 {[%emt 0:01:38]} Qd7 {[%emt 0:00:04]} 25. Na4 {[%emt 0:00:23]} Nxd6 {[%emt 0:01:18]} 26. Nc5 {[%emt 0:00:31]} Qe7 {[%emt 0:00:07]} 27. Nxe6 {[%emt 0:00:12]} Bxe6 {[%emt 0:00:09]} 28. Qd2 {[%emt 0:00:54]} 1-0

[Event "VII Famalicao Open 2019"]
[Site "Famalicao"]
[Date "2019.07.31"]
[Round "5.8"]
[White "Fidalgo, Daniel"]
[Black "Pinho, Paulo"]
[Result "1/2-1/2"]
[ECO "A15"]
[WhiteElo "2087"]
[BlackElo "2200"]
[Annotator "NA"]
[PlyCount "82"]
[EventDate "2019.07.28"]
[EventType "swiss"]
[EventCountry "POR"]
[SourceTitle "playchess.com"]
[Source "ChessBase"]
[SourceQuality "1"]
[TimeControl "5400+30"]

1. c4 {[%emt 0:00:00]} Nf6 {[%emt 0:00:06]} 2. g3 {[%emt 0:00:00]} g6 {[%emt 0:00:26]} 3. Bg2 {[%emt 0:00:17]} Bg7 {[%emt 0:00:09]} 4. Nc3 {[%emt 0:00:15]} O-O {[%emt 0:00:30]} 5. e4 {[%emt 0:00:14]} c5 {[%emt 0:04:47]} 6. Nge2 {[%emt 0:00:15]} Nc6 {[%emt 0:01:50]} 7. O-O {[%emt 0:00:34]} d6 {[%emt 0:03:52]} 8. d3 {[%emt 0:03:36]} a6 {[%emt 0:05:14]} 9. h3 {[%emt 0:03:17]} Rb8 {[%emt 0:13:16]} 10. Be3 {[%emt 0:06:06]} b5 {[%emt 0:02:55]} 11. b3 {[%emt 0:00:46]} Ne8 {[%emt 0:02:49]} 12. Rc1 {[%emt 0:08:53]} Nc7 {[%emt 0:15:07]} 13. cxb5 {[%emt 0:09:38]} axb5 {[%emt 0:00:07]} 14. d4 {[%emt 0:00:12]} b4 {[%emt 0:00:47]} 15. Nd5 {[%emt 0:11:02]} Nxd5 {[%emt 0:09:44]} 16. exd5 {[%emt 0:00:23]} Nxd4 {[%emt 0:00:12]} 17. Nxd4 {[%emt 0:01:09]} cxd4 {[%emt 0:00:07]} 18. Bxd4 {[%emt 0:00:06]} Bxd4 {[%emt 0:00:34]} 19. Qxd4 {[%emt 0:00:14]} Qa5 {[%emt 0:00:15]} 20. Qd2 {[%emt 0:01:21]} Ra8 {[%emt 0:00:21]} 21. Rfe1 {[%emt 0:00:55]} Re8 {[%emt 0:00:57]} 22. Rc4 {[%emt 0:01:21]} Qxa2 {[%emt 0:02:46]} 23. Qxa2 {[%emt 0:01:19]} Rxa2 {[%emt 0:00:05]} 24. Rxb4 {[%emt 0:00:05]} e5 {[%emt 0:03:34]} 25. Rb6 {[%emt 0:10:07]} Ra6 {[%emt 0:03:45]} 26. Rc6 {[%emt 0:04:16]} Kf8 {[%emt 0:01:56]} 27. Rec1 {[%emt 0:00:23]} Bb7 {[%emt 0:05:38]} 28. Rxa6 {[%emt 0:04:40]} Bxa6 {[%emt 0:00:03]} 29. Rc6 {[%emt 0:00:09]} Bd3 {[%emt 0:01:59]} 30. Rxd6 {[%emt 0:04:05]} Rb8 {[%emt 0:01:41]} 31. Rd7 {[%emt 0:00:27]} Rxb3 {[%emt 0:01:35]} 32. d6 {[%emt 0:00:16]} Rb1+ {[%emt 0:00:41]} 33. Kh2 {[%emt 0:00:08]} Bf5 {[%emt 0:00:40]} 34. Re7 {[%emt 0:09:28]} Be6 {[%emt 0:04:47]} 35. Bc6 {[%emt 0:00:25]} Rb8 {[%emt 0:00:07]} 36. Bd7 {[%emt 0:01:00]} Bxd7 {[%emt 0:04:51]} 37. Rxd7 {[%emt 0:00:12]} Kg7 {[%emt 0:01:40]} 38. Kg2 {[%emt 0:00:52]} Kf6 {[%emt 0:00:22]} 39. Kf3 {[%emt 0:00:22]} Rb4 {[%emt 0:02:08]} 40. Ke3 {[%emt 0:01:13]} h5 {[%emt 0:00:30]} 41. h4 {[%emt 0:00:48]} Ke6 {[%emt 0:02:04] Ke4} 1/2-1/2

[Event "VII Famalicao Open 2019"]
[Site "Famalicao"]
[Date "2019.07.31"]
[Round "5.9"]
[White "Fernandes, Joao Pedro"]
[Black "Santos, Jose Guilherme B Lim"]
[Result "0-1"]
[ECO "B90"]
[WhiteElo "2080"]
[BlackElo "2155"]
[Annotator "ChessBase"]
[PlyCount "100"]
[EventDate "2019.07.28"]
[EventType "swiss"]
[EventCountry "POR"]
[SourceTitle "playchess.com"]
[Source "ChessBase"]
[SourceQuality "1"]
[TimeControl "5400+30"]

1. e4 {[%emt 0:00:00]} c5 {[%emt 0:00:40]} 2. Nf3 {[%emt 0:00:00]} d6 {[%emt 0:00:04]} 3. d4 {[%emt 0:00:00]} cxd4 {[%emt 0:00:05]} 4. Nxd4 {[%emt 0:00:01]} Nf6 {[%emt 0:00:10]} 5. Nc3 {[%emt 0:00:28]} a6 {[%emt 0:01:06]} 6. h3 {[%emt 0:00:16]} e6 {[%emt 0:00:23]} 7. g4 {[%emt 0:00:40]} Be7 {[%emt 0:00:12]} 8. g5 {[%emt 0:00:51]} Nfd7 {[%emt 0:00:48]} 9. Be3 {[%emt 0:00:40]} Nc6 {[%emt 0:02:23]} 10. h4 {[%emt 0:01:53]} Qc7 {[%emt 0:12:38]} 11. Qd2 {[%emt 0:09:44]} b5 {[%emt 0:07:30]} 12. Nxc6 {[%emt 0:08:09]} Qxc6 {[%emt 0:00:10]} 13. a3 {[%emt 0:04:16]} Bb7 {[%emt 0:09:01]} 14. O-O-O {[%emt 0:09:14]} O-O-O {[%emt 0:02:59]} 15. Bd4 {[%emt 0:05:18]} Rhg8 {[%emt 0:02:35]} 16. Rh3 {[%emt 0:04:41]} Kb8 {[%emt 0:04:38]} 17. Kb1 {[%emt 0:05:23]} Nc5 {[%emt 0:07:09]} 18. Bg2 {[%emt 0:01:29]} f5 {[%emt 0:10:07]} 19. gxf6 {[%emt 0:10:40]} Bxf6 {[%emt 0:07:29]} 20. Bxf6 {[%emt 0:06:49]} gxf6 {[%emt 0:00:07]} 21. Bh1 {[%emt 0:01:05]} Qd7 {[%emt 0:18:55]} 22. b4 {[%emt 0:03:46]} e5 {[%emt 0:01:39]} 23. Re3 {[%emt 0:09:40]} Ne6 {[%emt 0:00:40]} 24. Ne2 {[%emt 0:06:58]} Rg4 {[%emt 0:03:59]} 25. Ng3 {[%emt 0:01:31]} Nf4 {[%emt 0:01:25]} 26. Bf3 {[%emt 0:01:29]} Rxh4 {[%emt 0:02:02]} 27. Nf5 {[%emt 0:00:39]} Rh2 {[%emt 0:00:03]} 28. Qe1 {[%emt 0:02:06]} d5 {[%emt 0:01:09]} 29. Qg1 {[%emt 0:00:57]} Rh3 {[%emt 0:00:48]} 30. Qg4 {[%emt 0:00:57]} h5 {[%emt 0:00:47]} 31. Qg1 {[%emt 0:01:33]} Qe6 {[%emt 0:00:28]} 32. Bg2 {[%emt 0:01:49]} Rg8 {[%emt 0:01:01]} 33. Rxh3 {[%emt 0:00:27]} Nxh3 {[%emt 0:00:04]} 34. Qf1 {[%emt 0:01:06]} Nf4 {[%emt 0:00:12]} 35. Bh3 {[%emt 0:01:13]} Rg5 {[%emt 0:01:19]} 36. exd5 {[%emt 0:00:37]} Bxd5 {[%emt 0:00:03]} 37. Ne3 {[%emt 0:01:01]} Qxh3 {[%emt 0:01:24]} 38. Qxh3 {[%emt 0:00:23]} Nxh3 {[%emt 0:00:03]} 39. Nxd5 {[%emt 0:00:54]} Nxf2 {[%emt 0:00:06]} 40. Rf1 {[%emt 0:00:17]} Ne4 {[%emt 0:00:21]} 41. Kc1 {[%emt 0:00:09]} f5 {[%emt 0:00:09]} 42. Ne7 {[%emt 0:00:35]} Ng3 {[%emt 0:00:34]} 43. Rd1 {[%emt 0:00:24]} e4 {[%emt 0:00:28]} 44. Rd7 {[%emt 0:00:19]} f4 {[%emt 0:00:55]} 45. Nc6+ {[%emt 0:00:32]} Kc8 {[%emt 0:00:07]} 46. Re7 {[%emt 0:00:09]} Rg6 {[%emt 0:00:40]} 47. Ne5 {[%emt 0:00:24]} Rd6 {[%emt 0:00:44]} 48. Nf7 {[%emt 0:00:18]} Rd7 {[%emt 0:00:16]} 49. Re8+ {[%emt 0:00:09]} Kc7 {[%emt 0:00:03]} 50. Ng5 {[%emt 0:00:14]} Rd4 {[%emt 0:03:07]} 0-1

[Event "VII Famalicao Open 2019"]
[Site "Famalicao"]
[Date "2019.07.31"]
[Round "5.10"]
[White "Romano, Joao"]
[Black "Tadevosyan, Aspet"]
[Result "*"]
[ECO "B92"]
[WhiteElo "2053"]
[BlackElo "2144"]
[Annotator "NA"]
[PlyCount "24"]
[EventDate "2019.07.28"]
[EventType "swiss"]
[EventCountry "POR"]
[SourceTitle "playchess.com"]
[Source "ChessBase"]
[SourceQuality "1"]
[TimeControl "5400+30"]

1. e4 {[%emt 0:00:00]} c5 {[%emt 0:00:23]} 2. Nf3 {[%emt 0:01:13]} d6 {[%emt 0:00:17]} 3. d4 {[%emt 0:00:25]} cxd4 {[%emt 0:00:18]} 4. Nxd4 {[%emt 0:00:19]} Nf6 {[%emt 0:00:10]} 5. Nc3 {[%emt 0:00:32]} a6 {[%emt 0:00:11]} 6. Be2 {[%emt 0:00:25]} e5 {[%emt 0:00:18]} 7. Nf3 {[%emt 0:04:35]} Be7 {[%emt 0:01:33]} 8. O-O {[%emt 0:01:48]} O-O {[%emt 0:00:20]} 9. h3 {[%emt 0:02:09]} b5 {[%emt 0:02:35]} 10. a3 {[%emt 0:02:37]} Bb7 {[%emt 0:00:36]} 11. Bd3 {[%emt 0:04:04]} Nbd7 {[%emt 0:01:29]} 12. Re1 {[%emt 0:07:33]} Rc8 {[%emt 0:11:31]} *

[Event "VII Famalicao Open 2019"]
[Site "Famalicao"]
[Date "2019.07.31"]
[Round "5.10"]
[White "Soares, Sara"]
[Black "Tadevosyan, Aspet"]
[Result "0-1"]
[ECO "B92"]
[WhiteElo "1583"]
[BlackElo "2144"]
[Annotator "ChessBase"]
[PlyCount "96"]
[EventDate "2019.07.28"]
[EventType "swiss"]
[EventCountry "POR"]
[SourceTitle "playchess.com"]
[Source "ChessBase"]
[SourceQuality "1"]
[TimeControl "5400+30"]

1. e4 {[%emt 0:00:00]} c5 {[%emt 0:00:23]} 2. Nf3 {[%emt 0:01:13]} d6 {[%emt 0:00:17]} 3. d4 {[%emt 0:00:25]} cxd4 {[%emt 0:00:18]} 4. Nxd4 {[%emt 0:00:19]} Nf6 {[%emt 0:00:10]} 5. Nc3 {[%emt 0:00:32]} a6 {[%emt 0:00:11]} 6. Be2 {[%emt 0:00:25]} e5 {[%emt 0:00:18]} 7. Nf3 {[%emt 0:04:35]} Be7 {[%emt 0:01:33]} 8. O-O {[%emt 0:01:48]} O-O {[%emt 0:00:20]} 9. h3 {[%emt 0:02:09]} b5 {[%emt 0:02:35]} 10. a3 {[%emt 0:02:37]} Bb7 {[%emt 0:00:36]} 11. Bd3 {[%emt 0:04:04]} Nbd7 {[%emt 0:01:29]} 12. Re1 {[%emt 0:07:33]} Rc8 {[%emt 0:11:31]} 13. Be3 {[%emt 0:13:05]} h6 {[%emt 0:10:04]} 14. Nh4 {[%emt 0:17:54]} d5 {[%emt 0:21:48]} 15. exd5 {[%emt 0:04:58]} Nxd5 {[%emt 0:07:00]} 16. Nxd5 {[%emt 0:04:37]} Bxh4 {[%emt 0:00:16]} 17. Be4 {[%emt 0:12:18]} Kh8 {[%emt 0:00:56]} 18. Qh5 {[%emt 0:05:54]} Bxd5 {[%emt 0:19:16]} 19. Bxd5 {[%emt 0:09:21]} Nf6 {[%emt 0:04:44]} 20. Qxh4 {[%emt 0:02:39]} Nxd5 {[%emt 0:00:02]} 21. Qe4 {[%emt 0:02:32]} Nxe3 {[%emt 0:00:27]} 22. Qxe3 {[%emt 0:00:44]} f6 {[%emt 0:00:12]} 23. c3 {[%emt 0:00:33]} Qd5 {[%emt 0:01:49]} 24. Rad1 Qb3 25. Rd2 {[%emt 0:00:46]} Rcd8 {[%emt 0:00:47]} 26. Red1 {[%emt 0:00:00]} Qxd1+ {[%emt 0:00:32]} 27. Rxd1 {[%emt 0:00:03]} Rxd1+ {[%emt 0:00:00]} 28. Kh2 {[%emt 0:00:50]} Rfd8 {[%emt 0:00:19]} 29. Qb6 {[%emt 0:00:20]} R1d6 {[%emt 0:00:32]} 30. Qc5 {[%emt 0:00:11]} Rd2 {[%emt 0:00:29]} 31. Qb6 {[%emt 0:00:44]} R8d6 {[%emt 0:00:35]} 32. Qb7 {[%emt 0:00:11]} Kh7 {[%emt 0:00:54]} 33. Qe4+ {[%emt 0:00:05]} Kh8 {[%emt 0:05:19]} 34. Qb7 {[%emt 0:01:03]} Rd8 {[%emt 0:00:19]} 35. Qb6 {[%emt 0:00:34]} Kh7 {[%emt 0:00:29]} 36. Qc7 {[%emt 0:01:25]} R8d6 {[%emt 0:01:55]} 37. Qc5 R6d3 38. Qc6 {[%emt 0:01:03]} Re2 {[%emt 0:01:00]} 39. Qe6 {[%emt 0:01:02]} Rxf2 40. Qc6 Rdd2 {[%emt 0:00:33]} 41. b4 {[%emt 0:00:52]} f5 {[%emt 0:00:49]} 42. Qe6 {[%emt 0:00:58]} Rxg2+ {[%emt 0:00:09]} 43. Kh1 {[%emt 0:00:01]} Rgf2 {[%emt 0:01:05]} 44. Kg1 {[%emt 0:00:11]} e4 {[%emt 0:00:42]} 45. Qe5 Rf3 {[%emt 0:00:43]} 46. Qc5 {[%emt 0:01:48]} e3 {[%emt 0:01:02]} 47. Qc6 {[%emt 0:00:17]} e2 {[%emt 0:00:14]} 48. Qe6 {[%emt 0:00:33]} Rf1+ {[%emt 0:00:10]} 0-1

[Event "VII Famalicao Open 2019"]
[Site "Famalicao"]
[Date "2019.07.31"]
[Round "5.11"]
[White "Rodrigues, Afonso"]
[Black "Monteiro, Jose Macedo"]
[Result "1-0"]
[ECO "A45"]
[WhiteElo "2134"]
[BlackElo "1851"]
[Annotator "NA"]
[PlyCount "55"]
[EventDate "2019.07.28"]
[EventType "swiss"]
[EventCountry "POR"]
[SourceTitle "playchess.com"]
[Source "ChessBase"]
[SourceQuality "1"]
[TimeControl "5400+30"]

1. d4 {[%emt 0:01:09]} Nf6 {[%emt 0:01:14]} 2. Bf4 {[%emt 0:00:09]} c5 {[%emt 0:01:01]} 3. c3 {[%emt 0:01:00]} cxd4 {[%emt 0:03:44]} 4. cxd4 {[%emt 0:00:11]} Qa5+ {[%emt 0:00:06]} 5. Nc3 {[%emt 0:09:46]} Nc6 {[%emt 0:02:50]} 6. Nf3 {[%emt 0:01:35]} d6 {[%emt 0:01:03]} 7. a3 {[%emt 0:20:47]} Bg4 {[%emt 0:10:29]} 8. b4 {[%emt 0:04:56]} Qf5 {[%emt 0:00:48]} 9. Bg3 {[%emt 0:20:07]} e5 {[%emt 0:14:20]} 10. d5 {[%emt 0:02:41]} Bxf3 {[%emt 0:00:23]} 11. exf3 {[%emt 0:00:03]} Nd4 {[%emt 0:00:16]} 12. Bd3 {[%emt 0:00:10]} Qd7 {[%emt 0:01:50]} 13. O-O {[%emt 0:01:02]} Rc8 {[%emt 0:08:34]} 14. Ne2 {[%emt 0:06:26]} Nxe2+ {[%emt 0:13:35]} 15. Qxe2 {[%emt 0:00:04]} Be7 {[%emt 0:00:13]} 16. Bb5 {[%emt 0:00:09]} Rc6 {[%emt 0:00:30]} 17. dxc6 {[%emt 0:01:01]} bxc6 {[%emt 0:00:01]} 18. Ba4 {[%emt 0:00:29]} O-O {[%emt 0:00:12]} 19. Rac1 {[%emt 0:00:20]} Rc8 {[%emt 0:00:04]} 20. Rc2 {[%emt 0:00:52]} Nh5 {[%emt 0:01:21]} 21. Rfc1 {[%emt 0:00:19]} Bg5 {[%emt 0:00:13]} 22. Rd1 {[%emt 0:00:42]} Qe6 {[%emt 0:11:29]} 23. Rxc6 {[%emt 0:00:56]} Rd8 {[%emt 0:01:17]} 24. Qc4 {[%emt 0:00:34]} Qe7 {[%emt 0:06:11]} 25. Rc7 {[%emt 0:02:18]} Qf6 {[%emt 0:00:06]} 26. Bb3 {[%emt 0:00:33]} Rf8 {[%emt 0:00:31]} 27. Qd5 {[%emt 0:01:54]} Bf4 {[%emt 0:03:17]} 28. Qxd6 {[%emt 0:00:11]} 1-0